bitfinex-derivatives/quotes_BNBF0:USTF0_20250908
["timestamp","ask_amount","ask_price","bid_price","bid_amount"]
[1757307737625,0.66743073,875.46,874.07,1.373]
[1757307737825,1.0130953,875.47,874.07,1.373]
[1757307738025,0.66743059,875.46,874.07,1.373]
[1757307738227,1.0130953,875.47,874.07,1.373]
[1757307738425,0.66747577,875.46,874.07,1.373]
[1757307738628,1.0130953,875.47,874.07,1.373]
[1757307738825,0.66747574,875.46,874.07,1.373]
[1757307739026,1.0130953,875.46,874.07,1.373]
[1757307739225,1.0130953,875.47,874.07,1.373]
[1757307739427,0.66753128,875.46,874.07,1.373]
[1757307739729,1.0130953,875.46,874.07,1.373]
[1757307740130,1.0130953,875.47,874.07,1.373]
[1757307740330,0.66758375,875.46,874.07,1.373]
[1757307740539,1.0130953,875.47,874.07,1.373]
[1757307740831,0.66758375,875.46,874.07,1.373]
[1757307741030,1.0130953,875.47,874.07,1.373]
[1757307741230,0.66758385,875.46,874.07,1.373]
[1757307741429,1.0130953,875.47,874.07,1.373]
[1757307741634,0.66766093,875.46,874.07,1.373]
[1757307741837,1.0130953,875.47,874.07,1.373]
[1757307742029,0.66766093,875.46,874.07,1.373]
[1757307742231,1.0130953,875.47,874.07,1.373]
[1757307742431,0.66774946,875.46,874.07,1.373]
[1757307742634,1.0130953,875.47,874.07,1.373]
[1757307742934,1.0130953,875.76,874.07,1.373]
[1757307743238,0.66777711,875.75,874.07,1.373]
[1757307743437,0.66777711,875.74,874.07,1.373]
[1757307743635,0.66777711,875.73,874.07,1.373]
[1757307743838,0.66777711,875.72,874.07,1.373]
[1757307744138,0.66777711,875.71,874.07,1.373]
[1757307744434,0.66777711,875.7,874.07,1.373]
[1757307744638,0.66777711,875.69,874.07,1.373]
[1757307744938,0.66777711,875.68,874.07,1.373]
[1757307745140,0.66777711,875.67,874.07,1.373]
[1757307745335,0.66777711,875.66,874.07,1.373]
[1757307745638,0.66777711,875.65,874.07,1.373]
[1757307745841,0.66777711,875.64,874.07,1.373]
[1757307746134,0.66777711,875.63,874.07,1.373]
[1757307746337,0.66777711,875.62,874.07,1.373]
[1757307746633,0.66777711,875.61,874.07,1.373]
[1757307746838,0.66777711,875.6,874.07,1.373]
[1757307747034,0.66777711,875.59,874.07,1.373]
[1757307747236,0.66777711,875.58,874.07,1.373]
[1757307747435,0.66777711,875.57,874.07,1.373]
[1757307747638,0.66777711,875.56,874.07,1.373]
[1757307747834,0.66777711,875.55,874.07,1.373]
[1757307748036,0.66777711,875.54,874.07,1.373]
[1757307748237,0.66777711,875.53,874.07,1.373]
[1757307748436,0.66777711,875.52,874.07,1.373]
[1757307748638,1.0130953,875.85,874.07,1.373]
[1757307748836,0.6688141,875.84,874.07,1.373]
[1757307749136,0.6688141,875.83,874.07,1.373]
[1757307749340,0.6688141,875.82,874.07,1.373]
[1757307749537,0.6688141,875.81,874.07,1.373]
[1757307749840,0.6688141,875.8,874.07,1.373]
[1757307750039,0.6688141,875.79,874.07,1.373]
[1757307750241,0.6688141,875.78,874.07,1.373]
[1757307750441,0.6688141,875.77,874.07,1.373]
[1757307750641,0.6688141,875.76,874.07,1.373]
[1757307750841,0.6688141,875.75,874.07,1.373]
[1757307751041,0.6688141,875.74,874.07,1.373]
[1757307751242,0.6688141,875.73,874.07,1.373]
[1757307751439,0.6688141,875.72,874.07,1.373]
[1757307751637,0.6688141,875.71,874.07,1.373]
[1757307751938,0.6688141,875.7,874.07,1.373]
[1757307752141,0.6688141,875.69,874.07,1.373]
[1757307752340,0.6688141,875.68,874.07,1.373]
[1757307752539,0.6688141,875.67,874.07,1.373]
[1757307752742,0.6688141,875.66,874.07,1.373]
[1757307752941,0.6688141,875.65,874.07,1.373]
[1757307753239,0.6688141,875.64,874.07,1.373]
[1757307753443,0.6688141,875.63,874.07,1.373]
[1757307753641,0.6688141,875.62,874.07,1.373]
[1757307753943,0.6688141,875.61,874.07,1.373]
[1757307754143,0.6688141,875.6,874.07,1.373]
[1757307754342,0.6688141,875.59,874.07,1.373]
[1757307754541,0.6688141,875.58,874.07,1.373]
[1757307754741,0.6688141,875.57,874.07,1.373]
[1757307754946,0.6688141,875.56,874.07,1.373]
[1757307755245,0.6688141,875.55,874.07,1.373]
[1757307755446,0.6688141,875.54,874.07,1.373]
[1757307755644,0.6688141,875.53,874.07,1.373]
[1757307755846,0.6688141,875.52,874.07,1.373]
[1757307756046,1.0130953,875.67,874.07,1.373]
[1757307756240,1.68337907,875.66,874.07,1.373]
[1757307756441,1.0130953,875.62,874.07,1.373]
[1757307756643,0.67028377,875.61,874.07,1.373]
[1757307756845,0.67028377,875.6,874.06,0.19835163]
[1757307757042,0.67028377,875.59,874.06,0.19835163]
[1757307757252,0.67028377,875.58,874.06,0.19835163]
[1757307757447,1.68337907,875.57,874.06,0.19835163]
[1757307757646,0.67028377,875.56,874.06,0.19835163]
[1757307757845,0.67028377,875.55,874.06,0.19835163]
[1757307758047,0.67028377,875.54,874.06,0.19835163]
[1757307758245,0.67028377,875.53,874.06,0.19835163]
[1757307758448,0.67028377,875.52,874.06,0.19835163]
[1757307758649,1.0130953,875.56,874.06,0.19835163]
[1757307758849,0.67111937,875.55,874.06,0.19835163]
[1757307759050,0.67111937,875.54,874.06,0.19835163]
[1757307759346,0.67111937,875.53,874.07,1.145]
[1757307759546,0.67111937,875.52,874.07,1.145]
[1757307759846,0.67119196,875.51,874.07,1.145]
[1757307760052,1.0130953,875.53,874.07,1.145]
[1757307760246,1.68428719,875.52,874.07,1.145]
[1757307760550,0.67119189,875.51,874.07,1.145]
[1757307760750,1.0130953,875.52,874.07,1.145]
[1757307760950,0.67134066,875.51,874.07,1.145]
[1757307761151,1.0130953,875.51,874.07,1.145]
[1757307765252,1.68500921,875.5,874.07,1.145]
[1757307765453,1.0130953,875.5,874.07,1.145]
[1757307766650,0.91178578,875.5,874.07,1.145]
[1757307767257,2.4453487,875.5,874.07,1.145]
[1757307768456,1.53356292,875.51,874.07,1.145]
[1757307772758,2.55394823,876.09,874.07,1.145]
[1757307772962,0.67211092,876.08,874.07,1.145]
[1757307773158,0.67211092,876.07,874.07,1.145]
[1757307773357,0.67211092,876.06,874.07,1.145]
[1757307773657,0.67211092,876.05,874.07,1.145]
[1757307773963,0.67211092,876.04,874.07,1.145]
[1757307774258,0.67211092,876.03,874.07,1.145]
[1757307774458,0.67211092,876.02,874.07,1.145]
[1757307774658,0.67211092,876.01,874.07,1.145]
[1757307774862,0.67211092,876.0,874.07,1.145]
[1757307775059,0.67211092,875.99,874.07,1.145]
[1757307775359,0.67211092,875.98,874.07,1.145]
[1757307775562,0.67211092,875.97,874.07,1.145]
[1757307775862,0.67211092,875.96,874.07,1.145]
[1757307776059,0.67211092,875.95,874.07,1.145]
[1757307776262,0.67211092,875.94,874.07,1.145]
[1757307776558,0.67211092,875.93,874.07,1.145]
[1757307776762,2.55394823,876.52,874.07,1.145]
[1757307776763,0.67211092,875.92,874.07,1.145]
[1757307777062,0.67211092,875.91,874.07,1.145]
[1757307777359,0.67211092,875.9,874.07,1.145]
[1757307777562,0.67211092,875.89,874.07,1.145]
[1757307777764,0.67211092,875.88,874.07,1.145]
[1757307777967,0.67211092,875.87,874.07,1.145]
[1757307778160,0.67211092,875.86,874.07,1.145]
[1757307778361,0.67211092,875.85,874.07,1.145]
[1757307778661,0.67211092,875.84,874.07,1.145]
[1757307778860,0.67211092,875.83,874.07,1.145]
[1757307779060,0.67211092,875.82,874.07,1.145]
[1757307779264,0.67211092,875.81,874.07,1.145]
[1757307779560,0.67211092,875.8,874.07,1.145]
[1757307779762,0.67211092,875.79,874.07,1.145]
[1757307779961,0.67211092,875.78,874.07,1.145]
[1757307780262,0.67211092,875.77,874.07,1.145]
[1757307780462,0.67211092,875.76,874.07,1.145]
[1757307780666,0.67211092,875.75,874.07,1.145]
[1757307780866,0.67211092,875.74,874.07,1.145]
[1757307781066,0.67211092,875.73,874.07,1.145]
[1757307781368,0.67211092,875.72,874.07,1.145]
[1757307781565,0.67211092,875.71,874.07,1.145]
[1757307781862,0.67211092,875.7,874.07,1.145]
[1757307782161,0.67211092,875.69,874.07,1.145]
[1757307782362,0.67211092,875.68,874.07,1.145]
[1757307782566,0.67211092,875.67,874.07,1.145]
[1757307782764,0.67211092,875.66,874.07,1.145]
[1757307782967,2.55394823,877.42,874.07,1.145]
[1757307782968,0.67211092,875.65,874.07,1.145]
[1757307783167,0.67211092,875.64,874.07,1.145]
[1757307783368,0.67211092,875.63,874.07,1.145]
[1757307783571,0.67211092,875.62,874.07,1.145]
[1757307783767,0.67211092,875.61,874.07,1.145]
[1757307783965,0.67211092,875.6,874.07,1.145]
[1757307784172,0.67211092,875.59,874.07,1.145]
[1757307784370,0.67211092,875.58,874.07,1.145]
[1757307784567,0.67211092,875.57,874.07,1.145]
[1757307784870,0.67211092,875.56,874.07,1.145]
[1757307785071,0.67211092,875.55,874.07,1.145]
[1757307785269,0.67211092,875.54,874.07,1.145]
[1757307785569,0.67211092,875.53,874.07,1.145]
[1757307785769,0.67211092,875.52,874.07,1.145]
[1757307785968,0.67211092,875.51,874.07,1.145]
[1757307786171,0.67211092,875.5,874.07,1.145]
[1757307786371,0.67211092,875.49,874.07,1.145]
[1757307786571,0.67211092,875.48,874.07,1.145]
[1757307786769,2.55394823,877.33,874.07,1.145]
[1757307787068,0.67770157,877.32,874.07,1.145]
[1757307787272,1.81661196,877.31,874.07,1.145]
[1757307787471,1.81661196,877.3,874.07,1.145]
[1757307787670,1.81661196,877.29,874.07,1.145]
[1757307787871,0.67770157,877.28,874.07,1.145]
[1757307788072,0.67770157,877.27,874.07,1.145]
[1757307788369,0.67770157,877.26,874.07,1.145]
[1757307788571,0.67770157,877.25,874.07,1.145]
[1757307788772,0.67770157,877.24,874.07,1.145]
[1757307788970,0.67770157,877.23,874.07,1.145]
[1757307789173,0.67770157,877.22,874.07,1.145]
[1757307789372,0.67770157,877.21,874.07,1.145]
[1757307789574,0.67770157,877.2,874.07,1.145]
[1757307789774,0.67770157,877.19,874.07,1.145]
[1757307789975,0.67770157,877.18,874.07,1.145]
[1757307790174,0.67770157,877.17,874.07,1.145]
[1757307790373,0.67770157,877.16,874.07,1.145]
[1757307790572,0.67770157,877.15,874.07,1.145]
[1757307790776,0.67770157,877.14,874.07,1.145]
[1757307790971,0.67770157,877.13,874.07,1.145]
[1757307791173,0.67770157,877.12,874.07,1.145]
[1757307791376,0.67770157,877.11,874.07,1.145]
[1757307791678,2.55394823,876.66,874.07,1.145]
[1757307791877,0.67770157,876.65,874.07,1.145]
[1757307792072,0.67770157,876.64,874.07,1.145]
[1757307792275,0.67770157,876.63,874.07,1.145]
[1757307792575,0.67770157,876.62,874.07,1.145]
[1757307792779,1.53310222,875.68,874.07,1.145]
[1757307792980,0.67770157,875.67,874.07,1.145]
[1757307793275,0.67770157,875.66,874.07,1.145]
[1757307793579,2.55394823,876.6,874.07,1.145]
[1757307793580,0.67770157,875.65,874.07,1.145]
[1757307793780,0.67770157,875.64,874.07,1.145]
[1757307794076,0.67770157,875.63,874.07,1.145]
[1757307794280,1.53310222,875.6,874.07,1.145]
[1757307794580,0.67770157,875.59,874.07,1.145]
[1757307794780,0.67770157,875.58,874.07,1.145]
[1757307794980,0.67770157,875.57,874.07,1.145]
[1757307795176,0.67770157,875.56,874.07,1.145]
[1757307795477,0.67770157,875.55,874.07,1.145]
[1757307795680,0.67770157,875.54,874.07,1.145]
[1757307795980,0.67770157,875.53,874.07,1.145]
[1757307796182,0.67770157,875.52,874.07,1.145]
[1757307796377,0.67770157,875.51,874.07,1.145]
[1757307796582,0.67770157,875.5,874.07,1.145]
[1757307796780,1.02218553,875.48,874.07,1.145]
[1757307797783,1.02218553,875.49,874.07,1.145]
[1757307798882,1.02218553,875.52,874.07,1.145]
[1757307800882,2.55528775,875.52,874.07,1.145]
[1757307801888,1.02218553,875.52,874.07,1.145]
[1757307806884,1.70310878,875.51,874.07,1.145]
[1757307807189,1.02218553,875.51,874.07,1.145]
[1757307808885,0.68350689,875.5,874.07,1.145]
[1757307809088,1.02218553,875.5,874.07,1.145]
[1757307810588,0.91996698,875.5,874.07,1.145]
[1757307811785,2.4530692,875.5,874.07,1.145]
[1757307812490,1.53310222,875.51,874.07,1.145]
[1757307812989,1.53310222,875.52,874.07,1.145]
[1757307813189,0.68240654,875.51,874.07,1.145]
[1757307813388,1.53310222,875.52,874.07,1.145]
[1757307813689,0.68240972,875.51,874.07,1.145]
[1757307813885,2.21549032,875.5,874.07,1.145]
[1757307814188,0.6823881,875.49,874.07,1.145]
[1757307814386,0.6823881,875.48,874.07,1.145]
[1757307814585,1.53310222,875.54,874.07,1.145]
[1757307814889,0.68238733,875.53,874.07,1.145]
[1757307815089,0.68238733,875.52,874.07,1.145]
[1757307815285,0.68238733,875.51,874.06,0.19835163]
[1757307815486,0.68238733,875.5,874.06,0.19835163]
[1757307815689,0.68238733,875.49,874.06,0.19835163]
[1757307815985,0.68238733,875.48,874.06,0.19835163]
[1757307816186,1.53310222,875.53,874.06,0.19835163]
[1757307816389,0.68486708,875.52,874.06,0.19835163]
[1757307816586,0.68486708,875.51,874.06,0.19835163]
[1757307816890,0.68486552,875.5,874.06,0.19835163]
[1757307817089,0.68486552,875.49,874.06,0.19835163]
[1757307817290,0.61637897,875.48,874.06,0.19835163]
[1757307817589,1.53310222,875.53,874.06,0.19835163]
[1757307817786,1.53310222,875.52,874.06,0.19835163]
[1757307818590,1.53310222,875.53,874.06,0.19835163]
[1757307818987,1.53310222,875.53,874.07,1.226]
[1757307819888,1.53310222,875.52,874.07,1.226]
[1757307820794,1.53310222,875.71,874.07,1.226]
[1757307821094,1.53310222,875.69,874.07,1.226]
[1757307821488,1.53310222,875.68,874.07,1.226]
[1757307822695,1.53310222,875.69,874.07,1.226]
[1757307823395,1.53310222,875.68,874.07,1.226]
[1757307824292,1.53310222,875.64,874.07,1.226]
[1757307825397,1.53310222,875.64,874.22,0.19848626]
[1757307828098,2.55394823,876.54,874.22,0.19848626]
[1757307828099,1.53310222,875.71,874.22,0.19848626]
[1757307828498,1.53310222,875.72,874.22,0.19848626]
[1757307829297,0.68620269,875.71,874.22,0.19848626]
[1757307829499,0.68620269,875.7,874.22,0.19848626]
[1757307829697,0.68620269,875.69,874.22,0.19848626]
[1757307829997,0.68620269,875.68,874.22,0.19848626]
[1757307830295,0.68620269,875.67,874.22,0.19848626]
[1757307830500,0.68620269,875.66,874.22,0.19848626]
[1757307830796,0.68620269,875.65,874.22,0.19848626]
[1757307830997,0.68620269,875.64,874.22,0.19848626]
[1757307831202,0.68620269,875.63,874.22,0.19848626]
[1757307831496,0.68620269,875.62,874.22,0.19848626]
[1757307831700,0.68620269,875.61,874.22,0.19848626]
[1757307831897,0.68620269,875.6,874.22,0.19848626]
[1757307832098,0.68620269,875.59,874.22,0.19848626]
[1757307832294,0.68620269,875.58,874.22,0.19848626]
[1757307832497,0.68620269,875.57,874.22,0.19848626]
[1757307832701,0.68620269,875.56,874.22,0.19848626]
[1757307832900,0.68620269,875.55,874.22,0.19848626]
[1757307833099,0.68620269,875.54,874.22,0.19848626]
[1757307833297,0.68620269,875.53,874.22,0.19848626]
[1757307833601,0.68620269,875.52,874.22,0.19848626]
[1757307833802,0.68620269,875.51,874.22,0.19848626]
[1757307834103,0.68620269,875.5,874.22,0.19848626]
[1757307834303,1.53310222,875.72,874.22,0.19848626]
[1757307834502,0.68879231,875.71,874.22,0.19848626]
[1757307834700,0.68879231,875.7,874.22,0.19848626]
[1757307834998,0.68879231,875.69,874.22,0.19848626]
[1757307835303,0.68879231,875.68,874.22,0.19848626]
[1757307835504,0.68879231,875.67,874.22,0.19848626]
[1757307835803,0.68879231,875.66,874.22,0.19848626]
[1757307836001,0.68879231,875.65,874.22,0.19848626]
[1757307836203,0.68879231,875.64,874.22,0.19848626]
[1757307836401,0.68879231,875.63,874.22,0.19848626]
[1757307836702,0.68879231,875.62,874.22,0.19848626]
[1757307836900,0.68879231,875.61,874.22,0.19848626]
[1757307837102,0.68879231,875.6,874.22,0.19848626]
[1757307837304,0.68879231,875.59,874.22,0.19848626]
[1757307837599,0.68879231,875.58,874.22,0.19848626]
[1757307837804,0.68879231,875.57,874.22,0.19848626]
[1757307838003,0.68879231,875.56,874.22,0.19848626]
[1757307838301,0.68879231,875.55,874.22,0.19848626]
[1757307838501,0.68879231,875.54,874.22,0.19848626]
[1757307838699,0.68879231,875.53,874.22,0.19848626]
[1757307838899,1.53310222,875.74,874.22,0.19848626]
[1757307839103,2.22186615,875.73,874.22,0.19848626]
[1757307839302,0.68876393,875.72,874.22,0.19848626]
[1757307839505,0.68876393,875.71,874.22,0.19848626]
[1757307839705,2.22186615,875.7,874.22,0.19848626]
[1757307839903,0.68876393,875.69,874.22,0.19848626]
[1757307840107,0.68876393,875.68,874.22,0.19848626]
[1757307840308,0.68876393,875.67,874.22,0.19848626]
[1757307840510,1.02197965,875.53,874.22,0.19848626]
[1757307842814,1.02197965,875.56,874.22,0.19848626]
[1757307847021,1.02197965,875.73,874.22,0.19848626]
[1757307847217,0.6883958,875.72,874.22,0.19848626]
[1757307847419,0.6883958,875.71,874.22,0.19848626]
[1757307847722,0.6883958,875.7,874.22,0.19848626]
[1757307847922,0.6883958,875.69,874.22,0.19848626]
[1757307848119,0.6883958,875.68,874.22,0.19848626]
[1757307848324,0.6883958,875.67,874.22,0.19848626]
[1757307848622,0.6883958,875.66,874.22,0.19848626]
[1757307848819,0.6883958,875.65,874.22,0.19848626]
[1757307849020,0.6883958,875.64,874.22,0.19848626]
[1757307849223,0.6883958,875.63,874.22,0.19848626]
[1757307849423,0.6883958,875.62,874.22,0.19848626]
[1757307849623,1.02197965,875.8,874.22,0.19848626]
[1757307849821,0.68826861,875.79,874.22,0.19848626]
[1757307850121,0.68826861,875.78,874.22,0.19848626]
[1757307850422,0.68826861,875.77,874.22,0.19848626]
[1757307850625,0.68826861,875.76,874.22,0.19848626]
[1757307850826,0.68826861,875.75,874.22,0.19848626]
[1757307851138,0.68826861,875.74,874.22,0.19848626]
[1757307851325,0.68826861,875.73,874.22,0.19848626]
[1757307851522,1.02197965,875.67,874.22,0.19848626]
[1757307852826,1.02197965,875.68,874.22,0.19848626]
[1757307853328,1.709837,875.67,874.22,0.19848626]
[1757307853522,1.70980036,875.66,874.22,0.19848626]
[1757307853727,1.02197965,875.66,874.22,0.19848626]
[1757307853928,1.02197965,875.67,874.22,0.19848626]
[1757307854229,1.02197965,875.67,874.23,1.294]
[1757307864437,2.55394823,876.78,874.23,1.294]
[1757307864438,1.02197965,875.72,874.23,1.294]
[1757307864637,0.68711199,875.71,874.23,1.294]
[1757307864940,1.02197965,875.69,874.23,1.294]
[1757307865137,0.68711199,875.68,874.23,1.294]
[1757307865337,0.68711199,875.67,874.23,1.294]
[1757307865538,1.02197965,875.69,874.23,1.294]
[1757307865736,0.687063,875.68,874.23,1.294]
[1757307866036,0.687063,875.67,874.23,1.294]
[1757307866240,1.02197965,875.69,874.23,1.294]
[1757307866440,0.68703001,875.68,874.23,1.294]
[1757307866640,0.68703001,875.67,874.23,1.294]
[1757307866940,0.68702618,875.66,874.23,1.294]
[1757307867141,0.68700751,875.65,874.23,1.294]
[1757307867342,0.68700751,875.64,874.23,1.294]
[1757307867542,1.02197965,875.66,874.23,1.294]
[1757307867738,0.68699152,875.65,874.23,1.294]
[1757307867942,0.68699152,875.64,874.23,1.294]
[1757307868140,1.02197965,875.66,874.23,1.294]
[1757307868340,0.68698834,875.65,874.23,1.294]
[1757307868543,0.68698834,875.64,874.23,1.294]
[1757307868745,1.02197965,875.67,874.23,1.294]
[1757307868957,0.68697701,875.66,874.23,1.294]
[1757307869142,0.68697701,875.65,874.23,1.294]
[1757307869341,1.70895666,875.64,874.23,1.294]
[1757307869641,1.02197965,875.64,874.23,1.294]
[1757307871441,1.02197965,875.65,874.23,1.294]
[1757307875342,1.02197965,875.66,874.23,1.294]
[1757307875547,1.70890713,875.65,874.23,1.294]
[1757307875745,1.02197965,875.65,874.23,1.294]
[1757307877147,0.91978169,875.65,874.23,1.294]
[1757307879954,2.45288391,875.65,874.23,1.294]
[1757307881252,2.45288391,875.65,874.22,0.19848626]
[1757307882154,1.53310222,875.71,874.22,0.19848626]
[1757307882356,1.53310222,875.76,874.22,0.19848626]
[1757307882556,0.6858274,875.75,874.22,0.19848626]
[1757307882758,0.6858274,875.74,874.22,0.19848626]
[1757307883057,0.6858274,875.73,874.22,0.19848626]
[1757307883357,0.6858274,875.72,874.22,0.19848626]
[1757307883553,0.6858274,875.71,874.22,0.19848626]
[1757307883856,1.53310222,875.76,874.22,0.19848626]
[1757307884057,0.68557654,875.75,874.22,0.19848626]
[1757307884258,0.68557654,875.74,874.22,0.19848626]
[1757307884454,0.68557654,875.73,874.22,0.19848626]
[1757307884659,0.68557654,875.72,874.22,0.19848626]
[1757307884860,0.68557654,875.71,874.23,1.177]
[1757307885158,1.53310222,875.76,874.23,1.177]
[1757307885359,0.6855779,875.75,874.23,1.177]
[1757307885659,0.6855779,875.74,874.23,1.177]
[1757307885859,0.6855779,875.73,874.23,1.177]
[1757307886167,0.6855779,875.72,874.23,1.177]
[1757307886359,0.6855779,875.71,874.23,1.177]
[1757307886660,1.53310222,875.76,874.23,1.177]
[1757307886855,0.68563612,875.75,874.23,1.177]
[1757307887055,0.68563612,875.74,874.23,1.177]
[1757307887259,0.68563612,875.73,874.23,1.177]
[1757307887559,0.68563612,875.72,874.23,1.177]
[1757307887760,0.68563612,875.71,874.23,1.177]
[1757307887959,1.53310222,875.75,874.23,1.177]
[1757307888158,0.68566697,875.74,874.23,1.177]
[1757307888362,0.68566697,875.73,874.23,1.177]
[1757307888560,0.68566697,875.72,874.23,1.177]
[1757307888856,0.68566697,875.71,874.23,1.177]
[1757307889158,1.53310222,875.76,874.23,1.177]
[1757307889361,0.68569901,875.75,874.23,1.177]
[1757307889561,0.68569901,875.74,874.23,1.177]
[1757307889761,0.68569901,875.73,874.23,1.177]
[1757307889962,1.53310222,875.86,874.23,1.177]
[1757307890164,0.68577143,875.85,874.23,1.177]
[1757307890363,0.68577143,875.84,874.23,1.177]
[1757307890558,0.68577143,875.83,874.23,1.177]
[1757307890862,0.68577143,875.82,874.23,1.177]
[1757307891063,0.68577143,875.81,874.23,1.177]
[1757307891261,0.68577143,875.8,874.23,1.177]
[1757307891461,0.68577143,875.79,874.23,1.177]
[1757307891761,0.68577143,875.78,874.23,1.177]
[1757307891958,0.68577143,875.77,874.23,1.177]
[1757307892259,0.68577143,875.76,874.23,1.177]
[1757307892557,0.68577143,875.75,874.23,1.177]
[1757307892756,0.68577143,875.74,874.23,1.177]
[1757307892958,1.53310222,875.82,874.23,1.177]
[1757307893162,2.21899331,875.81,874.23,1.177]
[1757307893364,0.68589109,875.8,874.23,1.177]
[1757307893565,0.68589109,875.79,874.23,1.177]
[1757307893763,1.53310222,875.81,874.23,1.177]
[1757307893764,0.68589109,875.78,874.23,1.177]
[1757307893959,0.68589109,875.77,874.23,1.177]
[1757307894264,0.68589109,875.76,874.23,1.177]
[1757307894463,0.68589109,875.75,874.23,1.177]
[1757307894759,0.68589109,875.74,874.23,1.177]
[1757307894960,1.53310222,875.8,874.23,1.177]
[1757307895159,0.68598247,875.79,874.23,1.177]
[1757307895366,0.68598247,875.78,874.23,1.177]
[1757307895565,0.68598247,875.77,874.23,1.177]
[1757307895861,0.68598247,875.76,874.23,1.177]
[1757307896060,1.53310222,876.08,874.38,0.5]
[1757307896261,0.68608165,876.07,874.38,0.5]
[1757307896465,0.68608165,876.06,874.38,0.5]
[1757307896762,0.68608165,876.05,874.23,1.177]
[1757307897063,0.68608165,876.04,874.25,0.5]
[1757307897262,0.68608165,876.03,874.25,0.5]
[1757307897462,0.68608165,876.02,874.25,0.5]
[1757307897661,0.68608165,876.01,874.25,0.5]
[1757307897865,0.68608165,876.0,874.25,0.5]
[1757307898062,0.68608165,875.99,874.25,0.5]
[1757307898260,1.53310222,876.16,874.25,0.5]
[1757307898261,0.68608165,875.98,874.25,0.5]
[1757307898466,0.68608165,875.97,874.25,0.5]
[1757307898761,0.68608165,875.96,874.25,0.5]
[1757307898959,0.68608165,875.95,874.25,0.5]
[1757307899163,0.68608165,875.94,874.25,0.5]
[1757307899361,0.68608165,875.93,874.25,0.5]
[1757307899562,0.68608165,875.92,874.25,0.5]
[1757307899769,0.68608165,875.91,874.25,0.5]
[1757307899964,0.68608165,875.9,874.25,0.5]
[1757307900165,0.68608165,875.89,874.25,0.5]
[1757307900362,0.68608165,875.88,874.25,0.5]
[1757307900561,0.68608165,875.87,874.25,0.5]
[1757307900765,0.68608165,875.86,874.25,0.5]
[1757307901064,0.68608165,875.85,874.25,0.5]
[1757307901264,0.68608165,875.84,874.25,0.5]
[1757307901467,1.53310222,876.16,874.25,0.5]
[1757307901763,1.53310222,875.94,874.25,0.5]
[1757307901967,0.68616276,875.93,874.25,0.5]
[1757307902167,0.68616276,875.92,874.25,0.5]
[1757307902463,0.68616276,875.91,874.25,0.5]
[1757307902664,0.68616276,875.9,874.25,0.5]
[1757307902867,0.68616276,875.89,874.25,0.5]
[1757307903168,0.68616276,875.88,874.25,0.5]
[1757307903370,0.68616276,875.87,874.25,0.5]
[1757307903564,0.68616276,875.86,874.25,0.5]
[1757307903867,1.53310222,875.96,874.25,0.5]
[1757307904063,0.68610468,875.95,874.25,0.5]
[1757307904270,0.68610468,875.94,874.25,0.5]
[1757307904466,0.68610468,875.93,874.25,0.5]
[1757307904663,0.68610468,875.92,874.25,0.5]
[1757307904862,0.68610468,875.91,874.25,0.5]
[1757307905066,0.68610468,875.9,874.25,0.5]
[1757307905264,0.68610468,875.89,874.25,0.5]
[1757307905464,0.68610468,875.88,874.25,0.5]
[1757307905664,0.68610468,875.87,874.25,0.5]
[1757307905968,1.53310222,875.94,874.25,0.5]
[1757307906168,0.68604665,875.93,874.25,0.5]
[1757307906367,0.68604665,875.92,874.25,0.5]
[1757307906568,0.68604665,875.91,874.25,0.5]
[1757307906768,1.53310222,876.08,874.25,0.5]
[1757307906969,0.68609022,876.07,874.25,0.5]
[1757307907164,1.01971278,875.94,874.25,0.5]
[1757307909370,1.01971278,875.94,874.24,0.5]
[1757307910471,1.01971278,875.94,874.23,1.177]
[1757307911171,1.70534948,875.93,874.23,1.177]